[Event "Vetern-SM 50+ 2025"]
[Site "Uppsala, Sweden"]
[Date "2025.06.30"]
[Round "3.3"]
[White "Brandberg, Joakim"]
[Black "Gamback, Bjorn"]
[Result "0-1"]
[TimeControl "90 min for 40 move + 30 min with an increment of 30 sec starting move 1"]
[BlackTitle "CM"]
[WhiteFideId "1712276"]
[BlackFideId "1703161"]
[WhiteElo "2111"]
[BlackElo "1996"]

1. d4 {[%clk 01:30:55]} {[%emt 00:00:04]} Nf6 {[%clk 01:30:52]} {[%emt
00:00:10]} 2. Nf3 {[%clk 01:31:11]} {[%emt 00:00:14]} e6 {[%clk 01:31:13]}
{[%emt 00:00:09]} 3. Bf4 {[%clk 01:30:51]} {[%emt 00:00:49]} c5 {[%clk
01:31:18]} {[%emt 00:00:25]} 4. e3 {[%clk 01:31:01]} {[%emt 00:00:19]} Qb6
{[%clk 01:30:33]} {[%emt 00:01:16]} 5. Na3 {[%clk 01:30:30]} {[%emt 00:01:02]}
cxd4 {[%clk 01:29:28]} {[%emt 00:01:36]} 6. exd4 {[%clk 01:21:17]} {[%emt
00:09:42]} Bxa3 {[%clk 01:10:39]} {[%emt 00:19:19]} 7. bxa3 {[%clk 01:21:38]}
{[%emt 00:00:09]} Qa5+ {[%clk 01:11:02]} {[%emt 00:00:07]} 8. Bd2 {[%clk
01:15:28]} {[%emt 00:06:40]} Qxa3 {[%clk 01:09:31]} {[%emt 00:02:01]} 9. Bd3
{[%clk 01:06:49]} {[%emt 00:09:09]} b6 {[%clk 01:05:16]} {[%emt 00:04:45]} 10.
O-O {[%clk 01:04:03]} {[%emt 00:03:15]} Ba6 {[%clk 01:00:05]} {[%emt 00:05:41]}
11. Bxa6 {[%clk 00:49:41]} {[%emt 00:14:52]} Qxa6 {[%clk 00:55:40]} {[%emt
00:04:54]} 12. Re1 {[%clk 00:34:35]} {[%emt 00:15:36]} Nc6 {[%clk 00:41:15]}
{[%emt 00:14:55]} 13. Bf4 {[%clk 00:33:12]} {[%emt 00:01:53]} O-O {[%clk
00:32:11]} {[%emt 00:09:35]} 14. Bd6 {[%clk 00:29:22]} {[%emt 00:04:20]} Rfe8
{[%clk 00:31:51]} {[%emt 00:00:50]} 15. a3 {[%clk 00:27:29]} {[%emt 00:02:22]}
Qc4 {[%clk 00:29:57]} {[%emt 00:02:24]} 16. Qd2 {[%clk 00:25:52]} {[%emt
00:02:08]} Qd5 {[%clk 00:28:56]} {[%emt 00:01:31]} 17. Bf4 {[%clk 00:22:50]}
{[%emt 00:03:31]} Rac8 {[%clk 00:27:34]} {[%emt 00:01:53]} 18. Qd3 {[%clk
00:22:38]} {[%emt 00:00:41]} Ne7 {[%clk 00:21:49]} {[%emt 00:06:15]} 19. Ne5
{[%clk 00:21:13]} {[%emt 00:01:55]} Ng6 {[%clk 00:21:32]} {[%emt 00:00:48]} 20.
Nxg6 {[%clk 00:13:39]} {[%emt 00:08:04]} hxg6 {[%clk 00:21:51]} {[%emt
00:00:11]} 21. Rac1 {[%clk 00:13:06]} {[%emt 00:01:01]} Qc4 {[%clk 00:20:59]}
{[%emt 00:01:23]} 22. Qd2 {[%clk 00:12:19]} {[%emt 00:01:17]} Qc3 {[%clk
00:20:21]} {[%emt 00:01:08]} 23. Qd1 {[%clk 00:09:59]} {[%emt 00:02:50]} Nd5
{[%clk 00:15:40]} {[%emt 00:05:11]} 24. Be5 {[%clk 00:09:02]} {[%emt 00:01:28]}
f6 {[%clk 00:14:48]} {[%emt 00:01:22]} 25. Bd6 {[%clk 00:08:19]} {[%emt
00:01:13]} Kf7 {[%clk 00:12:09]} {[%emt 00:03:08]} 26. h4 {[%clk 00:08:03]}
{[%emt 00:00:46]} Rh8 {[%clk 00:11:45]} {[%emt 00:00:54]} 27. g3 {[%clk
00:04:48]} {[%emt 00:03:45]} Rc4 {[%clk 00:11:52]} {[%emt 00:00:23]} 28. Qe2
{[%clk 00:03:32]} {[%emt 00:01:46]} Rxd4 {[%clk 00:11:04]} {[%emt 00:01:19]} 29.
Qa6 {[%clk 00:03:44]} {[%emt 00:00:17]} Qc6 {[%clk 00:10:42]} {[%emt 00:00:53]}
30. c4 {[%clk 00:03:35]} {[%emt 00:00:39]} Nc7 {[%clk 00:08:32]} {[%emt
00:02:39]} 31. Bxc7 Qxc7 {[%clk 00:09:01]} 32. c5 {[%clk 00:03:34]} {[%emt
00:00:29]} bxc5 {[%clk 00:08:56]} {[%emt 00:00:34]} 33. Rb1 {[%clk 00:03:56]}
{[%emt 00:00:09]} Rb8 {[%clk 00:08:54]} {[%emt 00:00:32]} 34. Rxb8 {[%clk
00:02:19]} {[%emt 00:02:07]} Qxb8 {[%clk 00:09:21]} {[%emt 00:00:03]} 35. Qe2
{[%clk 00:02:34]} {[%emt 00:00:15]} Qb3 {[%clk 00:08:00]} {[%emt 00:01:51]} 36.
h5 {[%clk 00:02:44]} {[%emt 00:00:20]} Qd3 {[%clk 00:06:57]} {[%emt 00:01:33]}
37. hxg6+ {[%clk 00:02:59]} {[%emt 00:00:15]} Kxg6 {[%clk 00:07:14]} {[%emt
00:00:13]} 38. Qb2 {[%clk 00:02:59]} {[%emt 00:00:29]} Qd2 {[%clk 00:06:06]}
{[%emt 00:01:38]} 39. Qb1+ {[%clk 00:03:24]} {[%emt 00:00:06]} Kf7 {[%clk
00:06:20]} {[%emt 00:00:15]} 40. Rf1 {[%clk 00:03:41]} {[%emt 00:00:14]} c4
{[%clk 00:05:53]} {[%emt 00:00:57]} 41. Qb7 {[%clk 00:03:36]} {[%emt 00:00:34]}
c3 {[%clk 00:05:34]} {[%emt 00:00:50]} 42. Qxa7 {[%clk 00:03:25]} {[%emt
00:00:41]} c2 {[%clk 00:05:39]} {[%emt 00:00:25]} 43. Qc5 {[%clk 00:03:40]}
{[%emt 00:00:14]} Qd1 {[%clk 00:03:48]} {[%emt 00:02:21]} 0-1

[Event "Vetern-SM 50+ 2025"]
[Site "Uppsala, Sweden"]
[Date "2025.06.30"]
[Round "3.4"]
[White "Persson, Lars"]
[Black "Helin, Mikael"]
[Result "0-1"]
[TimeControl "90 min for 40 move + 30 min with an increment of 30 sec starting move 1"]
[BlackTitle "CM"]
[WhiteFideId "1703579"]
[BlackFideId "1703838"]
[WhiteElo "2041"]
[BlackElo "1929"]

1. d4 {[%clk 01:30:56]} {[%emt 00:00:02]} d6 {[%clk 01:30:13]} {[%emt
00:00:48]} 2. e4 {[%clk 01:29:12]} {[%emt 00:02:14]} Nf6 {[%clk 01:30:18]}
{[%emt 00:00:25]} 3. Nc3 {[%clk 01:26:07]} {[%emt 00:03:35]} e5 {[%clk
01:27:59]} {[%emt 00:02:49]} 4. dxe5 {[%clk 01:24:56]} {[%emt 00:01:42]} dxe5
{[%clk 01:28:23]} {[%emt 00:00:06]} 5. Qxd8+ {[%clk 01:25:05]} {[%emt
00:00:20]} Kxd8 {[%clk 01:28:51]} {[%emt 00:00:01]} 6. Bg5 {[%clk 01:25:08]}
{[%emt 00:00:28]} c6 {[%clk 01:28:00]} {[%emt 00:01:20]} 7. O-O-O+ {[%clk
01:25:17]} {[%emt 00:00:22]} Kc7 {[%clk 01:28:23]} {[%emt 00:00:06]} 8. Bc4
{[%clk 01:20:43]} {[%emt 00:05:05]} Bc5 {[%clk 01:27:37]} {[%emt 00:01:15]} 9.
f3 {[%clk 01:07:53]} {[%emt 00:13:21]} Rf8 {[%clk 01:27:54]} {[%emt 00:00:12]}
10. a3 {[%clk 00:59:44]} {[%emt 00:08:40]} a6 {[%clk 01:25:08]} {[%emt
00:03:16]} 11. Nge2 {[%clk 00:58:00]} {[%emt 00:02:13]} b5 {[%clk 01:25:01]}
{[%emt 00:00:38]} 12. Ba2 {[%clk 00:53:00]} {[%emt 00:05:30]} Nbd7 {[%clk
01:15:04]} {[%emt 00:10:26]} 13. b4 {[%clk 00:49:34]} {[%emt 00:03:56]} Bd6
{[%clk 01:14:10]} {[%emt 00:01:24]} 14. Kb2 {[%clk 00:33:20]} {[%emt 00:16:45]}
a5 {[%clk 01:11:27]} {[%emt 00:03:12]} 15. bxa5 {[%clk 00:30:48]} {[%emt
00:03:02]} Rxa5 {[%clk 01:11:20]} {[%emt 00:00:37]} 16. Nb1 {[%clk 00:30:43]}
{[%emt 00:00:35]} Nb6 {[%clk 01:05:38]} {[%emt 00:06:13]} 17. Nec3 {[%clk
00:27:52]} {[%emt 00:03:20]} Be6 {[%clk 01:01:16]} {[%emt 00:04:52]} 18. Be3
{[%clk 00:19:40]} {[%emt 00:08:42]} Nfd7 {[%clk 01:01:00]} {[%emt 00:00:45]} 19.
Bxe6 {[%clk 00:09:59]} {[%emt 00:10:12]} fxe6 {[%clk 01:01:16]} {[%emt
00:00:13]} 20. Rd3 {[%clk 00:08:59]} {[%emt 00:01:31]} Nc4+ {[%clk 00:59:56]}
{[%emt 00:01:51]} 21. Kb3 {[%clk 00:07:18]} {[%emt 00:02:10]} Rfa8 {[%clk
00:55:23]} {[%emt 00:05:03]} 22. a4 {[%clk 00:04:31]} {[%emt 00:03:17]} Nxe3
{[%clk 00:54:39]} {[%emt 00:01:13]} 23. Rxe3 {[%clk 00:04:31]} {[%emt
00:00:30]} b4 {[%clk 00:53:37]} {[%emt 00:01:33]} 24. Ne2 {[%clk 00:03:47]}
{[%emt 00:01:12]} Rxa4 {[%clk 00:53:50]} {[%emt 00:00:19]} 25. Kb2 {[%clk
00:02:48]} {[%emt 00:01:29]} Bc5 {[%clk 00:51:22]} {[%emt 00:02:57]} 26. Rd3
{[%clk 00:03:05]} {[%emt 00:00:14]} Nb6 {[%clk 00:50:52]} {[%emt 00:01:00]} 27.
Rhd1 {[%clk 00:02:37]} {[%emt 00:00:58]} Nc4+ {[%clk 00:47:10]} {[%emt
00:04:11]} 28. Kb3 {[%clk 00:02:56]} {[%emt 00:00:12]} Nd6 {[%clk 00:47:25]}
{[%emt 00:00:15]} 29. Ng3 {[%clk 00:02:44]} {[%emt 00:00:42]} Bd4 {[%clk
00:46:10]} {[%emt 00:01:44]} 30. Nh5 {[%clk 00:01:57]} {[%emt 00:01:18]} c5
{[%clk 00:46:27]} {[%emt 00:00:13]} 31. c3 {[%clk 00:01:28]} {[%emt 00:00:59]}
c4+ {[%clk 00:43:30]} {[%emt 00:03:26]} 32. Kb2 {[%clk 00:01:04]} {[%emt
00:00:55]} Ra2+ {[%clk 00:42:29]} {[%emt 00:01:30]} 33. Kc1 {[%clk 00:01:10]}
{[%emt 00:00:25]} b3 {[%clk 00:42:26]} {[%emt 00:00:33]} 0-1

[Event "Vetern-SM 50+ 2025"]
[Site "Uppsala, Sweden"]
[Date "2025.06.30"]
[Round "3.5"]
[White "Warston, Hakan"]
[Black "Johansen, Peter"]
[Result "0-1"]
[TimeControl "90 min for 40 move + 30 min with an increment of 30 sec starting move 1"]
[WhiteFideId "1717367"]
[BlackFideId "1723944"]
[WhiteElo "1667"]
[BlackElo "2104"]

1. d4 {[%clk 01:30:55]} {[%emt 00:00:04]} d5 {[%clk 01:30:38]} {[%emt
00:00:24]} 2. c4 {[%clk 01:31:02]} {[%emt 00:00:22]} c6 {[%clk 01:30:38]}
{[%emt 00:00:30]} 3. Nf3 {[%clk 01:31:07]} {[%emt 00:00:25]} Nf6 {[%clk
01:30:42]} {[%emt 00:00:26]} 4. Nc3 {[%clk 01:30:59]} {[%emt 00:00:38]} a6
{[%clk 01:29:52]} {[%emt 00:01:20]} 5. cxd5 {[%clk 01:27:24]} {[%emt 00:04:04]}
cxd5 {[%clk 01:30:06]} {[%emt 00:00:16]} 6. Bf4 {[%clk 01:26:14]} {[%emt
00:01:41]} Nc6 {[%clk 01:27:05]} {[%emt 00:03:31]} 7. h3 {[%clk 01:23:28]}
{[%emt 00:03:15]} e6 {[%clk 01:13:01]} {[%emt 00:14:35]} 8. a3 {[%clk
01:19:17]} {[%emt 00:04:41]} Ne4 {[%clk 01:07:30]} {[%emt 00:06:01]} 9. e3
{[%clk 01:16:09]} {[%emt 00:03:37]} Qa5 {[%clk 01:02:59]} {[%emt 00:05:02]} 10.
Rc1 {[%clk 01:05:32]} {[%emt 00:11:07]} Nxc3 {[%clk 01:00:15]} {[%emt
00:03:14]} 11. bxc3 {[%clk 00:55:59]} {[%emt 00:10:01]} Bxa3 {[%clk 01:00:07]}
{[%emt 00:00:39]} 12. Rc2 {[%clk 00:55:59]} {[%emt 00:00:29]} b5 {[%clk
00:57:59]} {[%emt 00:02:38]} 13. Nd2 {[%clk 00:44:58]} {[%emt 00:11:32]} Be7
{[%clk 00:52:52]} {[%emt 00:05:37]} 14. Nb3 {[%clk 00:36:58]} {[%emt 00:08:30]}
Qd8 {[%clk 00:47:45]} {[%emt 00:05:37]} 15. Bd3 {[%clk 00:35:12]} {[%emt
00:02:16]} Na5 {[%clk 00:43:08]} {[%emt 00:05:07]} 16. Nxa5 {[%clk 00:32:36]}
{[%emt 00:03:06]} Qxa5 {[%clk 00:43:32]} {[%emt 00:00:06]} 17. O-O {[%clk
00:32:44]} {[%emt 00:00:21]} Bb7 {[%clk 00:41:47]} {[%emt 00:02:16]} 18. Qg4
{[%clk 00:29:09]} {[%emt 00:04:04]} g6 {[%clk 00:38:12]} {[%emt 00:04:05]} 19.
Qg3 {[%clk 00:29:01]} {[%emt 00:00:38]} Rc8 {[%clk 00:37:24]} {[%emt 00:01:19]}
20. Bd6 {[%clk 00:27:19]} {[%emt 00:02:12]} Qd8 {[%clk 00:34:34]} {[%emt
00:03:20]} 21. Bxe7 {[%clk 00:24:04]} {[%emt 00:03:45]} Qxe7 {[%clk 00:34:55]}
{[%emt 00:00:09]} 22. f4 {[%clk 00:23:13]} {[%emt 00:01:21]} Rc7 {[%clk
00:31:12]} {[%emt 00:04:13]} 23. Rb1 {[%clk 00:18:15]} {[%emt 00:05:27]} Bc8
{[%clk 00:27:16]} {[%emt 00:04:26]} 24. Qe1 {[%clk 00:17:50]} {[%emt 00:00:54]}
Qd6 {[%clk 00:27:09]} {[%emt 00:00:38]} 25. Qc1 {[%clk 00:14:05]} {[%emt
00:04:15]} Bb7 {[%clk 00:26:37]} {[%emt 00:01:03]} 26. Qb2 {[%clk 00:12:44]}
{[%emt 00:01:50]} O-O {[%clk 00:26:42]} {[%emt 00:00:25]} 27. Rbc1 {[%clk
00:07:57]} {[%emt 00:05:18]} f6 {[%clk 00:26:28]} {[%emt 00:00:44]} 28. Qb4
{[%clk 00:07:54]} {[%emt 00:00:33]} Rd8 {[%clk 00:25:58]} {[%emt 00:01:00]} 29.
Kf2 {[%clk 00:05:26]} {[%emt 00:02:57]} Kf7 {[%clk 00:25:43]} {[%emt 00:00:46]}
30. g4 {[%clk 00:04:56]} {[%emt 00:01:00]} Ke7 {[%clk 00:25:53]} {[%emt
00:00:20]} 31. h4 {[%clk 00:04:24]} {[%emt 00:01:02]} Rdc8 {[%clk 00:25:23]}
{[%emt 00:00:59]} 32. Qxd6+ {[%clk 00:02:59]} {[%emt 00:01:55]} Kxd6 {[%clk
00:25:51]} {[%emt 00:00:02]} 33. Ke2 {[%clk 00:03:05]} {[%emt 00:00:24]} e5
{[%clk 00:25:23]} {[%emt 00:00:58]} 34. Kd2 {[%clk 00:02:30]} {[%emt 00:01:06]}
exf4 {[%clk 00:23:55]} {[%emt 00:01:58]} 35. exf4 {[%clk 00:02:46]} {[%emt
00:00:14]} Rg8 {[%clk 00:23:10]} {[%emt 00:01:14]} 36. g5 {[%clk 00:01:46]}
{[%emt 00:01:30]} Rf7 {[%clk 00:23:13]} {[%emt 00:00:28]} 37. Rf1 {[%clk
00:01:44]} {[%emt 00:00:31]} fxg5 {[%clk 00:23:05]} {[%emt 00:00:39]} 38. hxg5
{[%clk 00:01:04]} {[%emt 00:01:10]} Bc8 {[%clk 00:23:19]} {[%emt 00:00:16]} 39.
Ke3 {[%clk 00:01:14]} {[%emt 00:00:20]} Re8+ {[%clk 00:22:38]} {[%emt
00:01:11]} 40. Kf3 {[%clk 00:01:28]} {[%emt 00:00:15]} Kc6 {[%clk 00:21:34]}
{[%emt 00:01:34]} 41. Re2 {[%clk 00:00:48]} {[%emt 00:01:10]} Rxe2 {[%clk
00:21:39]} {[%emt 00:00:26]} 42. Kxe2 {[%clk 00:00:56]} {[%emt 00:00:21]} Kb6
{[%clk 00:18:38]} {[%emt 00:03:33]} 43. Kf3 {[%clk 00:00:56]} {[%emt 00:00:29]}
Re7 {[%clk 00:18:56]} {[%emt 00:00:12]} 44. Rf2 {[%clk 00:29:29]} {[%emt
00:01:57]} Rc7 {[%clk 00:44:48]} {[%emt 00:04:37]} 45. Rc2 {[%clk 00:29:48]}
{[%emt 00:00:11]} Bf5 {[%clk 00:45:02]} {[%emt 00:00:16]} 46. Ke3 {[%clk
00:27:03]} {[%emt 00:03:15]} b4 {[%clk 00:40:57]} {[%emt 00:04:36]} 47. Bxf5
{[%clk 00:27:00]} {[%emt 00:00:33]} gxf5 {[%clk 00:41:23]} {[%emt 00:00:04]} 48.
Kd3 {[%clk 00:27:08]} {[%emt 00:00:21]} Rxc3+ {[%clk 00:41:34]} {[%emt
00:00:19]} 49. Rxc3 {[%clk 00:26:59]} {[%emt 00:00:39]} bxc3 {[%clk 00:42:00]}
{[%emt 00:00:04]} 50. Kxc3 {[%clk 00:27:14]} {[%emt 00:00:14]} Kb5 {[%clk
00:42:26]} {[%emt 00:00:05]} 51. Kb3 {[%clk 00:26:44]} {[%emt 00:01:00]} a5
{[%clk 00:42:52]} {[%emt 00:00:05]} 0-1

[Event "Vetern-SM 50+ 2025"]
[Site "Uppsala, Sweden"]
[Date "2025.06.30"]
[Round "3.6"]
[White "Karlsson, Patrik"]
[Black "Ljung, Rickard"]
[Result "0-1"]
[TimeControl "90 min for 40 move + 30 min with an increment of 30 sec starting move 1"]
[WhiteFideId "1710834"]
[BlackFideId "1740156"]
[WhiteElo "1923"]
[BlackElo "1972"]

1. e4 {[%clk 01:30:52]} {[%emt 00:00:07]} d6 {[%clk 01:30:37]} {[%emt
00:00:24]} 2. d4 {[%clk 01:30:59]} {[%emt 00:00:22]} Nf6 {[%clk 01:31:01]}
{[%emt 00:00:07]} 3. Nc3 {[%clk 01:31:19]} {[%emt 00:00:09]} g6 {[%clk
01:31:20]} {[%emt 00:00:11]} 4. Be3 {[%clk 01:31:12]} {[%emt 00:00:36]} Nc6
{[%clk 01:31:31]} {[%emt 00:00:21]} 5. h3 {[%clk 01:25:16]} {[%emt 00:06:24]}
e5 {[%clk 01:29:08]} {[%emt 00:02:55]} 6. d5 {[%clk 01:21:38]} {[%emt
00:04:07]} Ne7 {[%clk 01:28:07]} {[%emt 00:01:32]} 7. g4 {[%clk 01:20:44]}
{[%emt 00:01:23]} Bg7 {[%clk 01:28:17]} {[%emt 00:00:20]} 8. Be2 {[%clk
01:12:32]} {[%emt 00:08:41]} a6 {[%clk 01:20:34]} {[%emt 00:08:14]} 9. g5
{[%clk 00:58:19]} {[%emt 00:14:43]} Nd7 {[%clk 01:17:51]} {[%emt 00:03:14]} 10.
Qd2 {[%clk 00:57:59]} {[%emt 00:00:49]} b6 {[%clk 01:10:41]} {[%emt 00:07:41]}
11. h4 {[%clk 00:56:56]} {[%emt 00:01:32]} b5 {[%clk 00:58:33]} {[%emt
00:12:38]} 12. h5 {[%clk 00:50:02]} {[%emt 00:07:23]} Nb6 {[%clk 00:56:31]}
{[%emt 00:02:32]} 13. h6 {[%clk 00:48:25]} {[%emt 00:02:07]} Bf8 {[%clk
00:56:53]} {[%emt 00:00:09]} 14. b3 {[%clk 00:37:51]} {[%emt 00:11:03]} Ng8
{[%clk 00:56:42]} {[%emt 00:00:41]} 15. Bd3 {[%clk 00:28:39]} {[%emt 00:09:42]}
Be7 {[%clk 00:55:34]} {[%emt 00:01:37]} 16. O-O-O {[%clk 00:25:38]} {[%emt
00:03:32]} Nd7 {[%clk 00:52:54]} {[%emt 00:03:11]} 17. Nh3 {[%clk 00:22:37]}
{[%emt 00:03:30]} Nc5 {[%clk 00:51:00]} {[%emt 00:02:25]} 18. Rdf1 {[%clk
00:21:48]} {[%emt 00:01:17]} Nxd3+ {[%clk 00:50:07]} {[%emt 00:01:24]} 19. cxd3
{[%clk 00:22:01]} {[%emt 00:00:17]} Bd7 {[%clk 00:44:53]} {[%emt 00:05:44]} 20.
f4 {[%clk 00:21:15]} {[%emt 00:01:16]} Qc8 {[%clk 00:44:48]} {[%emt 00:00:35]}
21. Ng1 {[%clk 00:20:44]} {[%emt 00:01:01]} f5 {[%clk 00:44:15]} {[%emt
00:01:03]} 22. Qh2 {[%clk 00:18:18]} {[%emt 00:02:55]} b4 {[%clk 00:38:38]}
{[%emt 00:06:09]} 23. Nce2 {[%clk 00:16:56]} {[%emt 00:01:51]} c6 {[%clk
00:38:50]} {[%emt 00:00:19]} 24. fxe5 {[%clk 00:16:44]} {[%emt 00:00:41]} cxd5+
{[%clk 00:38:40]} {[%emt 00:00:41]} 25. Kb1 {[%clk 00:16:27]} {[%emt 00:00:47]}
Bb5 {[%clk 00:36:26]} {[%emt 00:02:44]} 26. Rd1 {[%clk 00:10:39]} {[%emt
00:06:17]} Qc7 {[%clk 00:32:50]} {[%emt 00:04:06]} 27. Bd4 {[%clk 00:10:23]}
{[%emt 00:00:46]} Rc8 {[%clk 00:30:38]} {[%emt 00:02:42]} 28. Nc1 {[%clk
00:07:47]} {[%emt 00:03:05]} dxe4 {[%clk 00:18:01]} {[%emt 00:13:08]} 29. dxe4
{[%clk 00:06:37]} {[%emt 00:01:40]} Qc6 {[%clk 00:16:52]} {[%emt 00:01:40]} 30.
Re1 {[%clk 00:02:47]} {[%emt 00:04:19]} Bxg5 {[%clk 00:16:38]} {[%emt
00:00:45]} 31. exd6 {[%clk 00:02:02]} {[%emt 00:01:14]} Bxc1 {[%clk 00:16:14]}
{[%emt 00:00:55]} 32. exf5+ {[%clk 00:01:07]} {[%emt 00:01:24]} Kd7 {[%clk
00:16:34]} {[%emt 00:00:10]} 33. Nf3 {[%clk 00:01:06]} {[%emt 00:00:30]} Qxf3
{[%clk 00:15:04]} {[%emt 00:02:01]} 34. Rxc1 {[%clk 00:00:31]} {[%emt
00:01:06]} Qe4+ {[%clk 00:15:17]} {[%emt 00:00:16]} 35. Ka1 {[%clk 00:00:32]}
{[%emt 00:00:29]} Qxd4+ {[%clk 00:15:32]} {[%emt 00:00:15]} 36. Qb2 {[%clk
00:00:54]} {[%emt 00:00:07]} Rxc1+ {[%clk 00:15:36]} {[%emt 00:00:27]} 37. Rxc1
{[%clk 00:01:09]} {[%emt 00:00:15]} Qxb2+ {[%clk 00:15:56]} {[%emt 00:00:10]}
38. Kxb2 {[%clk 00:01:35]} {[%emt 00:00:05]} Nxh6 {[%clk 00:16:05]} {[%emt
00:00:20]} 0-1

[Event "Vetern-SM 50+ 2025"]
[Site "Uppsala, Sweden"]
[Date "2025.06.30"]
[Round "3.7"]
[White "Hedin, Niclas"]
[Black "Gromark, Jonas"]
[Result "0-1"]
[TimeControl "90 min for 40 move + 30 min with an increment of 30 sec starting move 1"]
[WhiteFideId "1720708"]
[BlackFideId "137122733"]
[WhiteElo "1953"]
[BlackElo "1822"]

1. d4 {[%clk 01:30:57]} {[%emt 00:00:03]} Nf6 {[%clk 01:30:49]} {[%emt
00:00:12]} 2. Nf3 {[%clk 01:31:18]} {[%emt 00:00:08]} c5 {[%clk 01:30:32]}
{[%emt 00:00:48]} 3. e3 {[%clk 01:29:21]} {[%emt 00:02:26]} d5 {[%clk
01:29:08]} {[%emt 00:01:55]} 4. dxc5 {[%clk 01:29:18]} {[%emt 00:00:33]} Qa5+
{[%clk 01:25:55]} {[%emt 00:03:43]} 5. Nbd2 {[%clk 01:29:02]} {[%emt 00:00:43]}
Bg4 {[%clk 01:25:07]} {[%emt 00:01:20]} 6. c4 {[%clk 01:25:12]} {[%emt
00:04:20]} e6 {[%clk 01:23:00]} {[%emt 00:02:37]} 7. Be2 {[%clk 01:12:37]}
{[%emt 00:13:05]} Bxf3 {[%clk 01:11:45]} {[%emt 00:11:45]} 8. Bxf3 {[%clk
01:11:37]} {[%emt 00:01:29]} Qxc5 {[%clk 01:08:29]} {[%emt 00:03:47]} 9. O-O
{[%clk 01:11:13]} {[%emt 00:00:53]} Bd6 {[%clk 01:02:52]} {[%emt 00:06:07]} 10.
cxd5 {[%clk 00:54:33]} {[%emt 00:17:10]} exd5 {[%clk 00:56:46]} {[%emt
00:06:37]} 11. Nb3 {[%clk 00:54:03]} {[%emt 00:00:59]} Qc4 {[%clk 00:45:25]}
{[%emt 00:11:51]} 12. e4 {[%clk 00:46:39]} {[%emt 00:07:54]} Nc6 {[%clk
00:38:28]} {[%emt 00:07:28]} 13. Bg5 {[%clk 00:43:11]} {[%emt 00:03:56]} O-O
{[%clk 00:31:54]} {[%emt 00:07:05]} 14. Rc1 {[%clk 00:30:39]} {[%emt 00:13:02]}
Qa4 {[%clk 00:28:10]} {[%emt 00:04:15]} 15. Bxf6 {[%clk 00:21:21]} {[%emt
00:09:47]} gxf6 {[%clk 00:26:46]} {[%emt 00:01:55]} 16. exd5 {[%clk 00:21:38]}
{[%emt 00:00:13]} Ne5 {[%clk 00:25:24]} {[%emt 00:01:51]} 17. Nd4 {[%clk
00:20:29]} {[%emt 00:01:38]} Qd7 {[%clk 00:20:52]} {[%emt 00:05:03]} 18. Be4
{[%clk 00:18:14]} {[%emt 00:02:45]} Ng6 {[%clk 00:19:34]} {[%emt 00:01:48]} 19.
Qh5 {[%clk 00:16:50]} {[%emt 00:01:53]} Rfe8 {[%clk 00:14:40]} {[%emt
00:05:25]} 20. Bb1 {[%clk 00:13:34]} {[%emt 00:03:46]} Re5 {[%clk 00:13:22]}
{[%emt 00:01:48]} 21. Nf5 {[%clk 00:11:46]} {[%emt 00:02:18]} Bf8 {[%clk
00:13:02]} {[%emt 00:00:51]} 22. Rc3 {[%clk 00:11:01]} {[%emt 00:01:15]} Bg7
{[%clk 00:09:32]} {[%emt 00:03:59]} 23. Rh3 {[%clk 00:11:24]} {[%emt 00:00:06]}
Kf8 {[%clk 00:07:51]} {[%emt 00:02:12]} 24. Qf3 {[%clk 00:09:53]} {[%emt
00:02:01]} Qxd5 {[%clk 00:07:16]} {[%emt 00:01:05]} 25. Qa3+ {[%clk 00:04:59]}
{[%emt 00:05:25]} Kg8 {[%clk 00:06:52]} {[%emt 00:00:51]} 26. Nxg7 {[%clk
00:02:44]} {[%emt 00:02:47]} Kxg7 {[%clk 00:07:02]} {[%emt 00:00:20]} 27. Rd3
{[%clk 00:02:47]} {[%emt 00:00:26]} Qc6 {[%clk 00:04:29]} {[%emt 00:03:05]} 28.
Rd6 {[%clk 00:02:55]} {[%emt 00:00:21]} Qe8 {[%clk 00:04:23]} {[%emt 00:00:36]}
29. Qd3 {[%clk 00:01:01]} {[%emt 00:02:24]} Re6 {[%clk 00:02:09]} {[%emt
00:02:44]} 30. Rd4 {[%clk 00:00:57]} {[%emt 00:00:33]} Rc8 {[%clk 00:01:26]}
{[%emt 00:01:14]} 31. h3 {[%clk 00:01:19]} {[%emt 00:00:09]} Rec6 {[%clk
00:01:07]} {[%emt 00:00:48]} 32. Qd2 {[%clk 00:00:36]} {[%emt 00:01:12]} Qe5
{[%clk 00:01:11]} {[%emt 00:00:28]} 33. Rd5 {[%emt 00:00:38]} 0-1